fUSD/lending_fUSD_20240813
["ID","MTS","AMOUNT","RATE_DAILY","PERIOD"]
[334769018,1723539043707,-150.0,0.00023071,2]
[334769019,1723539043716,-180.0,0.00023205,2]
[334769020,1723539043727,-400.0,0.00023242,2]
[334769021,1723539043736,-1070.376415,0.0002325,2]
[334769022,1723539043745,-673.1943897,0.00023335,2]
[334769023,1723539043755,-151.23,0.00023392,2]
[334769024,1723539043766,-155.0,0.00023451,2]
[334769025,1723539043775,-2258.0,0.00023509,2]
[334769026,1723539043784,-3709.18468314,0.0002354,2]
[334769027,1723539043794,-2826.70598336,0.00023592,2]
[334769028,1723539043803,-150.0,0.00023648,2]
[334769029,1723539043814,-500.0,0.00023865,2]
[334769030,1723539043823,-199.27134754,0.00023873,2]
[334769031,1723539043834,-197.69822985,0.00023887,2]
[334769032,1723539043846,-10995.0870882,0.0002389,4]
[334769033,1723539043856,-8884.0,0.000239,2]
[334769034,1723539043865,-999.89020516,0.00023929,2]
[334769035,1723539043875,-2820.05129598,0.00024,2]
[334769036,1723539043884,-879.48712091,0.00024158,2]
[334769037,1723539043893,-176.0,0.00024164,2]
[334769038,1723539043902,-12939.5454393,0.0002418,4]
[334769039,1723539043912,-3887.25331391,0.000242,2]
[334769040,1723539043921,-150.0,0.00024225,2]
[334769041,1723539043931,-2826.70598336,0.00024246,2]
[334769042,1723539043940,-10995.0870882,0.0002427,4]
[334769043,1723539043950,-5067.43477173,0.0002428,18]
[334769044,1723539043960,-686.62593579,0.00024384,2]
[334769045,1723539043970,-1500.0,0.000244,2]
[334769046,1723539043980,-10995.0870882,0.0002448,4]
[334769047,1723539043990,-12939.5454393,0.0002448,4]
[334769048,1723539043999,-69151.02835267,0.0002449,4]
[334769053,1723539044118,-612.33108835,0.0002449,4]
[334769054,1723539044134,-156.38,0.00020536,2]
[334769055,1723539044144,-46495.86691874,0.0002449,4]
[334769056,1723539044155,-9001.43961496,0.0002449,4]
[334769057,1723539044166,-354.16960267,0.0002449,4]
[334769058,1723539044177,-250.13277065,0.0002449,4]
[334769059,1723539044188,-338.805,0.0002449,4]
[334769060,1723539044199,-587.58620971,0.0002449,4]
[334769061,1723539044210,-890.90712876,0.0002449,4]
[334769062,1723539044221,-3214.48239,0.0002449,4]
[334769063,1723539044233,-435.69827862,0.0002449,4]
[334769064,1723539044244,-7965.66577031,0.0002449,4]
[334769065,1723539044255,-1358.27907488,0.0002449,4]
[334769066,1723539044266,-803.05117959,0.0002449,4]
[334769067,1723539044277,-263.9482,0.0002449,4]
[334769068,1723539044292,-156.38,0.00020586,2]
[334769069,1723539044301,-114.21,0.0002449,4]
[334769070,1723539044365,-155.0,0.00016999,2]
[334769071,1723539044375,-156.38,0.00020639,2]
[334769072,1723539044384,-156.38,0.0002081,2]
[334769073,1723539044394,-156.38,0.0002081,2]
[334769074,1723539044405,-156.38,0.0002086,2]
[334769075,1723539044415,-156.38,0.00020967,2]
[334769076,1723539044426,-156.38,0.00020967,2]
[334769077,1723539044436,-156.38,0.0002107,2]
[334769078,1723539044446,-1098.53056609,0.0002449,4]
[334769079,1723539044456,-18757.99873969,0.0002449,4]
[334769080,1723539044467,-9800.24023505,0.0002449,4]
[334769081,1723539044479,-11209.15747998,0.0002449,4]
[334769082,1723539044492,-880.8,0.0002449,4]
[334769083,1723539044505,-942.66174752,0.0002449,4]
[334769084,1723539044517,-3484.0,0.0002449,4]
[334769085,1723539044529,-20481.6,0.0002449,4]
[334769086,1723539044541,-10176.16600853,0.0002449,4]
[334769087,1723539044552,-938.72103182,0.0002449,4]
[334769088,1723539044567,-156.38,0.00021084,2]
[334769089,1723539044577,-65663.65459041,0.0002449,4]
[334769090,1723539044586,-1413.9445561,0.00024498,20]
[334769091,1723539044597,-1790.45237902,0.000245,2]
[334769092,1723539044606,-7621.28306188,0.000245,5]
[334769097,1723539046500,-155.0,0.00016999,2]
[334769098,1723539046510,-156.38,0.00021084,2]
[334769099,1723539046521,-156.38,0.00021239,2]
[334769100,1723539046533,-156.38,0.00021358,2]
[334769101,1723539046544,-156.38,0.00021439,2]
[334769102,1723539046555,-156.38,0.00021591,2]
[334769103,1723539046565,-156.38,0.00021621,2]
[334769104,1723539046576,-156.38,0.00021621,2]
[334769105,1723539046587,-156.38,0.00021682,2]
[334769106,1723539046599,-156.38,0.0002181,2]
[334769107,1723539046610,-156.38,0.0002185,2]
[334769108,1723539046621,-156.38,0.0002185,2]
[334769109,1723539046631,-156.38,0.0002185,2]
[334769110,1723539046640,-3718.5015053,0.000245,5]
[334769111,1723539046652,-128645.95580588,0.000245,5]
[334769112,1723539046663,-147877.96201166,0.000245,5]
[334769113,1723539046675,-1378.80283563,0.000245,5]
[334769114,1723539046688,-873.80203649,0.000245,5]
[334769115,1723539046704,-2346.20274316,0.000245,5]
[334769116,1723539046714,-317.13482024,0.00024698,2]
[334769117,1723539046725,-399.97297038,0.0002479,5]
[334769118,1723539046743,-156.38,0.0002185,2]
[334769119,1723539046753,-1432.11915477,0.0002479,5]
[334769120,1723539046765,-606.13570382,0.0002479,5]
[334769121,1723539046779,-267.22567297,0.0002479,5]
[334769122,1723539046792,-837.1615839,0.0002479,5]
[334769123,1723539046804,-264.03044309,0.0002479,5]
[334769124,1723539046817,-9132.89991037,0.0002479,5]
[334769125,1723539046827,-1000.0,0.000248,2]
[334769126,1723539046837,-1000.0,0.000248,2]
[334769127,1723539046848,-1000.0,0.000248,2]
[334769128,1723539046858,-1000.0,0.000248,2]
[334769129,1723539046869,-1000.0,0.000248,2]
[334769130,1723539046880,-1000.0,0.000248,2]
[334769131,1723539046890,-5047.65738635,0.000248,25]
[334769132,1723539046901,-150.0,0.00024802,2]
[334769133,1723539046912,-25879.0908787,0.0002489,5]
[334769134,1723539046922,-547.87854217,0.00024899,2]
[334769135,1723539046932,-217.0,0.000249,2]
[334769136,1723539046942,-3000.0,0.000249,2]
[334769138,1723539046953,-5011.891,0.000249,2]
[334769140,1723539046963,-673.54673881,0.000249,4]
[334769141,1723539046973,-152.21,0.000249,31]
[334769142,1723539046983,-152.21,0.000249,31]
[334769143,1723539046994,-152.21,0.000249,31]
[334769144,1723539047004,-152.21,0.000249,31]
[334769145,1723539047015,-152.21,0.000249,31]
[334769146,1723539047026,-152.21,0.000249,31]
[334769147,1723539047035,-152.21,0.000249,31]
[334769148,1723539047046,-152.21,0.000249,31]
[334769149,1723539047055,-152.21,0.000249,31]
[334769150,1723539047066,-152.21,0.000249,31]
[334769151,1723539047076,-152.21,0.000249,31]
[334769152,1723539047086,-152.21,0.000249,31]
[334769153,1723539047099,-2826.70598336,0.000249,2]
[334769154,1723539047109,-4149.83558237,0.000249,2]
[334769155,1723539047119,-294.64747768,0.000249,2]
[334769156,1723539047129,-46127.55269496,0.000249,2]
[334769157,1723539047139,-668.0,0.000249,2]
[334769158,1723539047149,-984.45949867,0.00024966,2]
[334769159,1723539047160,-142334.999833,0.0002498,5]
[334769160,1723539047170,-150.0,0.00024986,4]
[334769161,1723539047180,-150.0,0.00024986,4]
[334769162,1723539047189,-150.0,0.00024986,4]
[334769163,1723539047199,-230.81259343,0.00024986,4]
[334769164,1723539047210,-197.69822985,0.00024987,2]
[334769165,1723539047220,-211.03413449,0.00024989,2]
[334769166,1723539047229,-211.03413449,0.00024989,2]
[334769167,1723539047240,-383781.96323722,0.0002499,10]
[334769168,1723539047254,-818.62900206,0.0002499,10]
[334769169,1723539047264,-1383.88760895,0.00024997,2]
[334769170,1723539047274,-1000.0,0.00024999,2]
[334769171,1723539047284,-1000.0,0.00024999,2]
[334769172,1723539047295,-1475.85809793,0.00024999,2]
[334769173,1723539047306,-749.77193106,0.00024999,2]
[334769174,1723539047318,-250.22806894,0.00024999,2]
[334769175,1723539047328,-1000.0,0.00024999,2]
[334769176,1723539047339,-1697.32091725,0.00024999,4]
[334769177,1723539095197,372.14812752,0.00011,2]
[334769180,1723539142067,300.00869841,0.00011,2]
[334769181,1723539148928,13.61317407,0.00011,2]
[334769182,1723539148956,168.42381542,0.00011,2]
[334769183,1723539154588,791.2211021,0.00011,2]
[334769184,1723539155686,227.78421077,0.00011,2]
[334769185,1723539168124,1050.7552299,0.00011,2]
[334769186,1723539168820,532.29736643,0.00011,2]
[334769187,1723539169628,170.68529892,0.00011,2]
[334769188,1723539180476,449.61806259,0.00011,2]
[334769189,1723539186721,162.73988333,0.00011,2]
[334769190,1723539187249,1118.18,0.00013,2]
[334769191,1723539203795,413.60296893,0.00011,2]
[334769192,1723539206186,372.14812752,0.00011,2]
[334769195,1723539228739,400.0,0.0002493,120]
[334769196,1723539247140,1051.77300645,0.00011,2]
[334769197,1723539251592,500.0,0.00011,2]
[334769198,1723539301605,408.59507138,0.00011,2]
[334769199,1723539313458,950.45,0.00013,2]
[334769200,1723539330728,162.73988333,0.00011,2]
[334769201,1723539338733,162.73988333,0.00011,2]
[334769202,1723539343487,450.08866087,0.00011,2]
[334769203,1723539438785,807.88,0.00013,2]
[334769204,1723539459219,372.14812752,0.00011,2]
[334769205,1723539563530,686.7,0.00013,2]
[334769206,1723539567454,2840.85553108,0.00012928,2]
[334769207,1723539688666,583.69,0.00013,2]
[334769208,1723539765248,372.14812752,0.00011,2]
[334769209,1723539815109,496.14,0.00013,2]
[334769210,1723539820249,371.80848717,0.00011,2]
[334769211,1723539845365,2225.7591055,0.00012928,2]
[334769212,1723539857352,155.0,0.00012995,2]
[334769213,1723539859651,497.79393503,0.00012995,2]
[334769214,1723539918629,155.0,0.00012995,2]
[334769215,1723539941027,421.72,0.00013,2]
[334769218,1723539984250,357.40219692,0.00012995,2]
[334769219,1723540008139,155.15747743,0.00012995,2]
[334769223,1723540067951,358.46,0.00013,2]
[334769230,1723540097598,1257.41208312,0.00012928,2]
[334769234,1723540193011,304.69,0.00013,2]
[334769246,1723540231568,-300.33457688,0.00013333,2]
[334769247,1723540231578,-1275.75177255,0.0001351,2]
[334769248,1723540231588,-155.0,0.00013648,2]
[334769249,1723540231598,-155.0,0.00013698,2]
[334769250,1723540231607,-217.01,0.00013776,2]
[334769251,1723540231617,-1243.5,0.00013896,2]
[334769252,1723540231626,-300.0,0.00013898,2]
[334769253,1723540231635,-2040.59519704,0.00013899,2]
[334769254,1723540231647,-6987.55159708,0.00013899,2]
[334769255,1723540231658,-5439.96,0.00013899,2]
[334769256,1723540231668,-1319.0268565,0.00013899,2]
[334769257,1723540231687,-619.65012665,0.00013899,2]
[334769258,1723540231698,-781.99865427,0.00013899,2]
[334769259,1723540231708,-1123.00756846,0.00013899,2]
[334769260,1723540231718,-499.99,0.00013899,2]
[334769261,1723540231727,-154.96,0.00013973,2]
[334769262,1723540231737,-189.94,0.00013989,2]
[334769263,1723540231746,-155.10294698,0.00014105,2]
[334769264,1723540231755,-155.0,0.00014789,2]
[334769265,1723540231764,-150.0,0.00014989,2]
[334769266,1723540231772,-666.19948456,0.00015,2]
[334769267,1723540231783,-939.2,0.00015,2]
[334769268,1723540231795,-10738.91143297,0.00015,2]
[334769269,1723540231807,-3754.52126582,0.00015,2]
[334769271,1723540231819,-4633.01478385,0.00015,2]
[334769273,1723540231832,-1956.37593354,0.00015,2]
[334769275,1723540231843,-11770.56428241,0.00015,2]
[334769277,1723540231855,-1000.37172,0.00015,2]
[334769280,1723540231875,-6952.90786514,0.00015,2]
[334769284,1723540231886,-420.0,0.00015288,2]
[334769288,1723540231897,-156.88439115,0.00015555,2]
[334769291,1723540231908,-361.36554768,0.00015555,2]
[334769294,1723540231919,-1367.74,0.00015555,2]
[334769408,1723540237704,-1406.25774236,0.00013483,2]
[334769409,1723540237715,-865.01006117,0.00015555,2]
[334769410,1723540237725,-580.15,0.00015598,2]
[334769411,1723540237735,-6818.6,0.00015623,2]
[334769412,1723540237744,-2000.0,0.00015627,2]
[334769413,1723540237755,-250.0,0.0001565,2]
[334769414,1723540237764,-905.55019647,0.00015757,2]
[334769415,1723540237775,-279.60694329,0.00015757,2]
[334769416,1723540237786,-3335.0225768,0.00015757,2]
[334769417,1723540237797,-396.9459217,0.00015757,2]
[334769418,1723540237808,-303.253995,0.00015757,2]
[334769419,1723540237834,-1754.76629976,0.00015757,2]
[334769420,1723540237845,-343.85707999,0.00015757,2]
[334769421,1723540237855,-1412.40540899,0.00015757,2]
[334769422,1723540237866,-795.2682055,0.00015757,2]
[334769423,1723540237877,-1007.38297438,0.00015757,2]
[334769424,1723540237894,-2478.91439812,0.00015757,2]
[334769425,1723540237904,-2781.54,0.00015763,2]
[334769426,1723540237913,-200.0,0.00015805,2]
[334769427,1723540237923,-200.0,0.00015846,2]
[334769428,1723540237932,-439.11555003,0.0001587,2]
[334769429,1723540237941,-150.0,0.00015929,2]
[334769430,1723540237951,-155.0,0.00015999,2]
[334769431,1723540237960,-155.0,0.00015999,2]
[334769432,1723540237969,-155.0,0.00016033,2]
[334769433,1723540237978,-217.01,0.0001604,2]
[334769434,1723540237987,-180.01,0.00016051,2]
[334769435,1723540237996,-255.0,0.00016113,2]
[334769436,1723540238006,-316.77347451,0.00016358,2]
[334769437,1723540238015,-186.1,0.00016439,2]
[334769438,1723540238024,-186.1,0.00016444,2]
[334769439,1723540238033,-186.1,0.00016448,2]
[334769440,1723540238043,-186.1,0.00016452,2]
[334769441,1723540238052,-186.1,0.00016457,2]
[334769442,1723540238062,-186.1,0.00016461,2]
[334769443,1723540238072,-186.1,0.00016465,2]
[334769444,1723540238081,-186.1,0.0001647,2]
[334769445,1723540238091,-85.40194434,0.00016474,2]
[334769446,1723540238108,-100.69805566,0.00016474,2]
[334769447,1723540238117,-186.1,0.00016478,2]
[334769448,1723540238126,-186.1,0.00016483,2]
[334769449,1723540238136,-186.1,0.00016487,2]
[334769450,1723540238146,-186.1,0.00016491,2]
[334769451,1723540238156,-186.1,0.00016496,2]
[334769452,1723540238166,-186.1,0.000165,2]
[334769453,1723540238178,-186.1,0.00016504,2]
[334769454,1723540238187,-186.1,0.00016509,2]
[334769455,1723540238197,-186.1,0.00016513,2]
[334769456,1723540238207,-186.1,0.00016517,2]
[334769457,1723540238217,-186.1,0.00016522,2]
[334769458,1723540238227,-1000.0,0.00016767,2]
[334769459,1723540238237,-480.0,0.00016817,2]
[334769460,1723540238246,-775.99476748,0.00017009,2]
[334769461,1723540238258,-1715.894,0.00017109,2]
[334769463,1723540238268,-270.394,0.00017109,2]
[334769465,1723540238280,-1136.0,0.00017109,2]
[334769467,1723540238290,-556.0,0.00017109,2]
[334769470,1723540238300,-810.0,0.00017109,2]
[334769472,1723540238310,-164.752,0.00017109,2]
[334769474,1723540238320,-1894.0,0.00017109,2]
[334769475,1723540238330,-551.0,0.00017109,2]
[334769477,1723540238341,-3291.0,0.00017109,2]
[334769479,1723540238351,-300.917,0.00017109,2]
[334769481,1723540238360,-1186.0,0.00017109,2]
[334769483,1723540238370,-233.41,0.0001717,2]
[334769485,1723540238380,-233.41,0.0001717,2]
[334769487,1723540238389,-233.41,0.0001717,2]
[334769489,1723540238399,-23.51694948,0.0001717,2]
[334769492,1723540238411,-209.89305052,0.0001717,2]
[334769494,1723540238421,-233.41,0.0001717,2]
[334769496,1723540238431,-233.41,0.0001717,2]
[334769498,1723540238441,-452.76,0.0001717,3]
[334769500,1723540238451,-5133.0,0.0001718,2]
[334769502,1723540238461,-1225.75622405,0.0001718,2]
[334769505,1723540238482,-233.41,0.0001717,2]
[334769507,1723540238492,-3498.69435402,0.0001718,2]
[334769509,1723540238504,-1116.54942193,0.0001718,2]
[334769511,1723540238514,-994.58925753,0.0001718,2]
[334769513,1723540238526,-675.54813812,0.0001718,2]
[334769516,1723540238547,-0.86260435,0.0001718,2]
[334769518,1723540238557,-289.0,0.0001718,2]
[334769520,1723540238567,-5046.366,0.0001718,2]
[334769522,1723540238576,-151.0,0.00017327,2]
[334769524,1723540238587,-300.0,0.0001736,2]
[334769526,1723540238597,-775.99476739,0.00017886,2]
[334769528,1723540238607,-400.0,0.00018131,2]
[334769530,1723540238617,-217.01,0.00018304,2]
[334769532,1723540238627,-2533.75911352,0.000186,2]
[334769534,1723540238637,-300.0,0.0001873,2]
[334769536,1723540238646,-775.99476739,0.00018763,2]
[334769538,1723540238656,-1000.0,0.00018862,2]
[334769540,1723540238666,-452.78,0.00018957,3]
[334769542,1723540238676,-11996.87868945,0.00018977,2]
[334769545,1723540238688,-24503.20791055,0.00018977,2]
[334769547,1723540238698,-1000.0,0.00018977,2]
[334769548,1723540238707,-531.16504504,0.00018999,2]
[334769550,1723540238717,-526.77808365,0.00019045,2]
[334769553,1723540238727,-222.39859957,0.00019119,2]
[334769555,1723540238737,-12420.1932863,0.00019168,3]
[334769557,1723540238749,-4854.21860765,0.00019168,3]
[334769850,1723540241727,-155.0,0.00013648,2]
[334769852,1723540241737,-435.84766157,0.00015999,2]
[334769927,1723540242732,-5307.9,0.00015999,2]
[334769928,1723540242744,-711.24,0.00015999,2]
[334769929,1723540242756,-4925.39450496,0.00015999,2]
[334769930,1723540242767,-2055.05993475,0.00015999,2]
[334769931,1723540242777,-233.41,0.0001717,2]
[334769932,1723540242786,-233.41,0.0001717,2]
[334769933,1723540242795,-168.66377671,0.0001717,2]
[334769934,1723540242807,-64.74622329,0.0001717,2]
[334769935,1723540242817,-233.41,0.0001717,2]
[334769936,1723540242826,-1076.0,0.0001718,2]
[334769937,1723540242835,-108.66005261,0.0001735,2]
[334769938,1723540242848,-124.74994739,0.0001735,2]
[334769939,1723540242857,-233.41,0.00018294,2]
[334769940,1723540242867,-233.41,0.0001859,2]
[334769941,1723540242876,-233.41,0.00018752,2]
[334769942,1723540242885,-233.41,0.00018852,2]
[334769943,1723540242895,-233.41,0.00018967,2]
[334769944,1723540242904,-233.41,0.00018967,2]
[334769945,1723540242913,-233.41,0.00018967,2]
[334769946,1723540242923,-233.41,0.00018967,2]
[334769947,1723540242932,-233.41,0.00018967,2]
[334769948,1723540242942,-233.41,0.00018967,2]
[334769949,1723540242951,-581.36930383,0.00019168,3]
[334769950,1723540242963,-6805.04578038,0.00019168,3]
[334769951,1723540242974,-907.65657637,0.00019168,3]
[334769952,1723540242985,-10593.13620227,0.00019168,3]
[334769953,1723540242998,-500.0,0.00019177,2]
[334769954,1723540243008,-500.0,0.00019177,2]
[334769955,1723540243018,-500.0,0.00019177,2]
[334769956,1723540243027,-211.03413449,0.00019177,2]
[334769957,1723540243037,-27596.7396748,0.00019178,7]
[334769958,1723540243046,-134813.95487904,0.00019178,7]
[334769959,1723540243057,-1323.72601942,0.00019178,7]
[334769960,1723540243068,-307.33651968,0.00019178,7]
[334769963,1723540243079,-3878.69,0.00019178,7]
[334769968,1723540243131,-233.41,0.00018967,2]
[334769970,1723540243140,-135.88730818,0.00019178,7]
[334770004,1723540243598,-233.95112768,0.00019178,7]
[334770005,1723540243611,-156.4355,0.00019219,2]
[334770006,1723540243620,-155.0,0.00019387,2]
[334770007,1723540243630,-179.4623719,0.00019398,2]
[334770008,1723540243639,-35209.43014288,0.0001945,2]
[334770009,1723540243648,-155.46765337,0.00019451,2]
[334770010,1723540243658,-500.0,0.00019451,2]
[334770011,1723540243667,-1000.0,0.00019613,2]
[334770012,1723540243677,-775.99476739,0.00019639,2]
[334770013,1723540243686,-500.0,0.00019699,2]
[334770014,1723540243695,-710.96,0.000197,7]
[334770015,1723540243704,-400.94023796,0.00019725,2]
[334770016,1723540243716,-99.05976204,0.00019725,2]
[334770017,1723540243725,-365.07854483,0.00019899,2]
[334770018,1723540243735,-222.39859957,0.00019945,2]
[334770019,1723540243746,-9040.40493919,0.0001999,4]
[334770020,1723540243755,-500.0,0.00019999,2]
[334770021,1723540243765,-200.0,0.00019999,2]
[334770022,1723540243775,-500.0,0.00019999,2]
[334770023,1723540243784,-500.0,0.00019999,2]
[334770024,1723540243794,-500.0,0.00019999,2]
[334770025,1723540243803,-500.0,0.00019999,2]
[334770026,1723540243812,-500.0,0.00019999,2]
[334770027,1723540243821,-586.0581036,0.00019999,2]
[334770028,1723540243831,-4207.00005077,0.0002,2]
[334770029,1723540243845,-1011.21766666,0.0002,2]
[334770030,1723540243856,-1605.35180376,0.0002,2]
[334770034,1723540245716,-150.99,0.00018752,2]
[334770035,1723540245726,-233.41,0.00018967,2]
[334770036,1723540245735,-218.71009219,0.00018967,2]
[334770043,1723540251805,-14.69990781,0.00018967,2]
[334770044,1723540251815,-233.41,0.00018967,2]
[334770045,1723540251824,-233.41,0.00018967,2]
[334770046,1723540251834,-233.41,0.00018967,2]
[334770047,1723540251843,-233.41,0.00018967,2]
[334770048,1723540251855,-233.41,0.00018967,2]
[334770049,1723540251864,-233.41,0.00018967,2]
[334770050,1723540251873,-233.41,0.00018967,2]
[334770051,1723540251882,-233.41,0.00018967,2]
[334770052,1723540251891,-233.41,0.00018967,2]
[334770053,1723540251901,-233.41,0.00018967,2]
[334770054,1723540251910,-311.6638522,0.0002,2]
[334770055,1723540251961,-316.77347451,0.00016358,2]
[334770056,1723540251971,-233.41,0.00018967,2]
[334770057,1723540251981,-233.41,0.00018967,2]
[334770058,1723540251991,-233.41,0.00018967,2]
[334770059,1723540252000,-1291.78176405,0.0002,2]
[334770060,1723540271562,150.0,0.00026256,120]
[334770061,1723540318640,152.35,0.00013,2]
[334770062,1723540443033,150.0,0.00013,2]
[334770063,1723540497277,550.0,0.0001,2]
[334770064,1723540498529,600.0,0.00012,2]
[334770065,1723540568712,150.0,0.00013,2]
[334770066,1723540693091,150.0,0.00013,2]
[334770067,1723540808271,270.0,0.00025948,120]
[334770068,1723540818148,150.0,0.00013,2]
[334770069,1723540941633,263.32,0.00013,2]
[334770070,1723541108948,8396901.40120147,0.00011,2]
[334770139,1723541404955,-150.0,0.0001,2]
[334770145,1723541432581,-855.0,9.999e-05,2]
[334770146,1723541432590,-7744.09490155,0.0001,2]
[334770147,1723541432599,-300.0,0.00010565,2]
[334770148,1723541432609,-300.0,0.00010565,2]
[334770149,1723541432620,-43361.0,0.00010566,2]
[334770150,1723541432629,-192.14261377,0.00010859,2]
[334770151,1723541432639,-3436.18829144,0.00010859,5]
[334770152,1723541432648,-150.0,0.00010899,2]
[334770153,1723541432657,-343.47724529,0.000109,2]
[334770154,1723541432666,-350.37279529,0.00010928,2]
[334770156,1723541432680,-324.79,0.00010959,2]
[334770157,1723541432691,-270.66,0.00010959,2]
[334770159,1723541432700,-225.55,0.00010959,2]
[334770161,1723541432710,-187.95,0.00010959,2]
[334770163,1723541432719,-156.63,0.00010959,2]
[334770166,1723541432728,-783.17,0.00010959,2]
[334770168,1723541432738,-167.77,0.0001099,2]
[334770169,1723541432747,-167.77,0.0001099,2]
[334770171,1723541432757,-167.77,0.0001099,2]
[334770174,1723541432766,-167.77,0.0001099,2]
[334770176,1723541432776,-167.77,0.0001099,2]
[334770177,1723541432786,-167.77,0.0001099,2]
[334770179,1723541432796,-167.77,0.0001099,2]
[334770181,1723541432806,-167.77,0.0001099,2]
[334770183,1723541432815,-167.77,0.0001099,2]
[334770185,1723541432825,-167.77,0.0001099,2]
[334770187,1723541432834,-167.77,0.0001099,2]
[334770189,1723541432844,-167.77,0.0001099,2]
[334770191,1723541432853,-167.77,0.0001099,2]
[334770193,1723541432863,-167.77,0.0001099,2]
[334770195,1723541432872,-167.77,0.0001099,2]
[334770197,1723541432882,-167.77,0.0001099,2]
[334770199,1723541432891,-167.77,0.0001099,2]
[334770201,1723541432901,-167.77,0.0001099,2]
[334770203,1723541432910,-167.77,0.0001099,2]
[334770205,1723541432920,-167.77,0.0001099,2]
[334770207,1723541432931,-167.77,0.0001099,2]
[334770209,1723541432941,-167.77,0.0001099,2]
[334770211,1723541432950,-167.77,0.0001099,2]
[334770213,1723541432960,-167.77,0.0001099,2]
[334770215,1723541432970,-167.77,0.0001099,2]
[334770217,1723541432979,-167.77,0.0001099,2]
[334770219,1723541432988,-167.77,0.0001099,2]
[334770221,1723541432997,-167.77,0.0001099,2]
[334770223,1723541433007,-167.77,0.0001099,2]
[334770225,1723541433016,-167.77,0.0001099,2]
[334770227,1723541433025,-167.77,0.0001099,2]
[334770229,1723541433035,-167.77,0.0001099,2]
[334770231,1723541433044,-167.77,0.0001099,2]
[334770233,1723541433053,-167.77,0.0001099,2]
[334770235,1723541433063,-167.77,0.0001099,2]
[334770237,1723541433072,-167.77,0.0001099,2]
[334770239,1723541433081,-167.77,0.0001099,2]
[334770241,1723541433091,-167.77,0.0001099,2]
[334770242,1723541433100,-167.77,0.0001099,2]
[334770244,1723541433109,-167.77,0.0001099,2]
[334770246,1723541433118,-167.77,0.0001099,2]
[334770248,1723541433127,-167.77,0.0001099,2]
[334770250,1723541433136,-167.77,0.0001099,2]
[334770252,1723541433146,-167.77,0.0001099,2]
[334770253,1723541433156,-167.77,0.0001099,2]
[334770255,1723541433167,-167.77,0.0001099,2]
[334770257,1723541433179,-167.77,0.0001099,2]
[334770259,1723541433189,-167.77,0.0001099,2]
[334770261,1723541433198,-167.77,0.0001099,2]
[334770262,1723541433208,-167.77,0.0001099,2]
[334770264,1723541433217,-167.77,0.0001099,2]
[334770266,1723541433227,-167.77,0.0001099,2]
[334770268,1723541433236,-167.77,0.0001099,2]
[334770270,1723541433245,-167.77,0.0001099,2]
[334770271,1723541433255,-167.77,0.0001099,2]
[334770273,1723541433264,-167.77,0.0001099,2]
[334770275,1723541433274,-6154.82,0.00010997,2]
[334770276,1723541433283,-167.86996824,0.00010997,2]
[334770277,1723541433292,-161.18,0.00010999,2]
[334770278,1723541433301,-999.99,0.00010999,2]
[334770279,1723541433310,-4648.37,0.00010999,2]
[334770280,1723541433319,-528.42446724,0.00010999,2]
[334770281,1723541433328,-531933.18802747,0.00011,2]
[334770282,1723541433338,-1401936.03290207,0.00011,2]